fUSD/lending_fUSD_20260506
["ID","MTS","AMOUNT","RATE_DAILY","PERIOD"]
[421717287,1778058532000,-803.96,0.00013802,2]
[421717286,1778058532000,-173.43189356,0.00013713,2]
[421717296,1778058532000,-500.0,0.00014,2]
[421717311,1778058533000,-151.0,0.00014444,2]
[421717307,1778058533000,-151.0,0.00014444,2]
[421717308,1778058533000,-151.0,0.00014444,2]
[421717313,1778058533000,500.0,0.00011999,2]
[421717312,1778058533000,-92.9657897,0.00014453,2]
[421717310,1778058533000,-151.0,0.00014444,2]
[421717309,1778058533000,-151.0,0.00014444,2]
[421717317,1778058534000,500.0,0.00011999,2]
[421717316,1778058534000,3531.95547239,0.00010646,2]
[421717315,1778058534000,1621.20683461,0.00010646,2]
[421717314,1778058534000,500.0,0.00011999,2]
[421717319,1778058535000,500.0,0.00011999,2]
[421717318,1778058535000,500.0,0.00011999,2]
[421717321,1778058536000,500.0,0.00011999,2]
[421717320,1778058536000,500.0,0.00011999,2]
[421717322,1778058545000,500.0,0.00011999,2]
[421717323,1778058549000,459.819014,0.00025022,120]
[421717326,1778058555000,500.0,0.00011999,2]
[421717324,1778058555000,152.0,0.00011779,2]
[421717325,1778058555000,500.0,0.00011999,2]
[421717328,1778058555000,500.0,0.00011999,2]
[421717332,1778058555000,500.0,0.00011999,2]
[421717329,1778058555000,500.0,0.00011999,2]
[421717330,1778058555000,500.0,0.00011999,2]
[421717331,1778058555000,500.0,0.00011999,2]
[421717333,1778058555000,500.0,0.00011999,2]
[421717327,1778058555000,500.17963805,0.00011999,2]
[421717334,1778058556000,500.0,0.00011999,2]
[421717335,1778058556000,500.0,0.00011999,2]
[421717336,1778058556000,500.0,0.00011999,2]
[421717337,1778058556000,500.0,0.00011999,2]
[421717338,1778058556000,500.0,0.00011999,2]
[421717339,1778058556000,500.0,0.00011999,2]
[421717340,1778058556000,500.0,0.00011999,2]
[421717341,1778058556000,500.0,0.00011999,2]
[421717342,1778058556000,500.0,0.00011999,2]
[421717344,1778058556000,152.16963805,0.00011999,2]
[421717343,1778058556000,347.83036195,0.00011999,2]
[421717347,1778058556000,500.0,0.00011999,2]
[421717356,1778058556000,500.0,0.00011999,2]
[421717345,1778058556000,500.0,0.00011999,2]
[421717354,1778058556000,500.0,0.00011999,2]
[421717353,1778058556000,500.0,0.00011999,2]
[421717352,1778058556000,500.0,0.00011999,2]
[421717355,1778058556000,500.0,0.00011999,2]
[421717350,1778058556000,500.0,0.00011999,2]
[421717349,1778058556000,500.0,0.00011999,2]
[421717348,1778058556000,500.0,0.00011999,2]
[421717346,1778058556000,500.0,0.00011999,2]
[421717351,1778058556000,443.44506125,0.00011999,2]
[421717363,1778058557000,500.0,0.00011999,2]
[421717357,1778058557000,500.0,0.00011999,2]
[421717358,1778058557000,500.0,0.00011999,2]
[421717359,1778058557000,500.0,0.00011999,2]
[421717360,1778058557000,500.0,0.00011999,2]
[421717361,1778058557000,500.0,0.00011999,2]
[421717362,1778058557000,500.0,0.00011999,2]
[421717364,1778058557000,404.3953007,0.00011999,2]
[421717374,1778058557000,500.0,0.00011999,2]
[421717366,1778058557000,500.0,0.00011999,2]
[421717367,1778058557000,500.0,0.00011999,2]
[421717368,1778058557000,500.0,0.00011999,2]
[421717369,1778058557000,500.0,0.00011999,2]
[421717370,1778058557000,500.0,0.00011999,2]
[421717371,1778058557000,500.0,0.00011999,2]
[421717372,1778058557000,500.0,0.00011999,2]
[421717373,1778058557000,500.0,0.00011999,2]
[421717365,1778058557000,95.6046993,0.00011999,2]
[421717375,1778058558000,500.0,0.00011999,2]
[421717377,1778058561000,-516.94609672,0.00013357,2]
[421717378,1778058561000,-1890.15932648,0.00013357,2]
[421717376,1778058561000,-166.66,0.00013092,2]
[421717379,1778058566000,500.0,0.00011999,2]
[421717380,1778058566000,500.0,0.00011999,2]
[421717381,1778058566000,500.0,0.00011999,2]
[421717383,1778058567000,500.0,0.00011999,2]
[421717382,1778058567000,500.0,0.00011999,2]
[421717385,1778058567000,500.0,0.00011999,2]
[421717384,1778058567000,199.99999999,0.00011999,2]
[421717390,1778058567000,295.59469929,0.00011999,2]
[421717388,1778058567000,500.0,0.00011999,2]
[421717387,1778058567000,500.0,0.00011999,2]
[421717389,1778058567000,204.40530071,0.00011999,2]
[421717391,1778058567000,500.0,0.00011999,2]
[421717386,1778058567000,500.0,0.00011999,2]
[421717392,1778058567000,500.0,0.00011999,2]
[421717395,1778058567000,500.0,0.00011999,2]
[421717394,1778058567000,500.0,0.00011999,2]
[421717396,1778058567000,500.0,0.00011999,2]
[421717397,1778058567000,500.0,0.00011999,2]
[421717399,1778058567000,500.0,0.00011999,2]
[421717398,1778058567000,500.0,0.00011999,2]
[421717400,1778058567000,500.0,0.00011999,2]
[421717401,1778058567000,500.0,0.00011999,2]
[421717393,1778058567000,500.0,0.00011999,2]
[421717403,1778058568000,500.0,0.00011999,2]
[421717402,1778058568000,500.0,0.00011999,2]
[421717405,1778058577000,616.803539,0.00023011,120]
[421717404,1778058577000,162.091134,0.00023011,120]
[421717447,1778058633000,-1852.42,0.00014355,2]
[421717450,1778058633000,-2920.90909486,0.00014402,2]
[421717442,1778058633000,-2500.0,0.0001421,2]
[421717443,1778058633000,-300.0,0.0001421,2]
[421717439,1778058633000,-2500.0,0.0001421,2]
[421717446,1778058633000,-500.0,0.00014233,2]
[421717444,1778058633000,-300.0,0.0001421,2]
[421717445,1778058633000,-300.0,0.0001421,2]
[421717441,1778058633000,-1597.95613752,0.0001421,2]
[421717440,1778058633000,-902.04386248,0.0001421,2]
[421717434,1778058633000,-300.0,0.00013771,2]
[421717438,1778058633000,-341.62605614,0.0001385,2]
[421717437,1778058633000,-208.08566668,0.00013773,2]
[421717436,1778058633000,-300.0,0.00013772,2]
[421717435,1778058633000,-2500.0,0.00013772,2]
[421717432,1778058633000,-1200.0,0.00013771,2]
[421717431,1778058633000,-250.0,0.00013432,2]
[421717433,1778058633000,-300.0,0.00013771,2]
[421717428,1778058633000,-1870.46087098,0.00013357,2]
[421717430,1778058633000,-353.61099302,0.00013432,2]
[421717429,1778058633000,-309.48193511,0.00013357,2]
[421717448,1778058633000,-193.0,0.00014402,2]
[421717452,1778058633000,-2500.0,0.00014402,2]
[421717462,1778058633000,-150.99,0.00014452,2]
[421717464,1778058633000,-1094.57,0.00014453,2]
[421717490,1778058633000,-150.0,0.00014999,2]
[421717492,1778058633000,-97902.34838733,0.00015,2]
[421717488,1778058633000,-159.61374998,0.00014999,2]
[421717486,1778058633000,-453.48,0.00014965,2]
[421717484,1778058633000,-8104.95109951,0.00014956,2]
[421717482,1778058633000,-250.0,0.00014904,2]
[421717480,1778058633000,-1734.1682,0.000149,2]
[421717478,1778058633000,-268.78178162,0.000148,2]
[421717476,1778058633000,-803.96,0.00014693,2]
[421717472,1778058633000,-500.0,0.00014553,2]
[421717469,1778058633000,-584.92,0.00014552,2]
[421717467,1778058633000,-7671.81,0.00014499,2]
[421717470,1778058633000,-733.02,0.00014552,2]
[421717466,1778058633000,-4425.51,0.00014499,2]
[421717457,1778058633000,-250.0,0.00014402,2]
[421717460,1778058633000,-300.0,0.00014452,2]
[421717454,1778058633000,-300.0,0.00014402,2]
[421717465,1778058633000,-9999.99,0.00014453,2]
[421717456,1778058633000,-500.0,0.00014402,2]
[421717474,1778058633000,-314.6772,0.00014554,2]
[421717458,1778058633000,-300.0,0.00014452,2]
[421717512,1778058637000,-26275.76890073,0.00015,2]
[421717513,1778058637000,-380.52932165,0.00015,2]
[421717514,1778058637000,-19099.78945932,0.00015,2]
[421717515,1778058637000,-5495.57409318,0.00015056,2]
[421717519,1778058637000,-500.0,0.00015148,2]
[421717516,1778058637000,-301.0,0.00015091,2]
[421717517,1778058637000,-420.0,0.00015091,2]
[421717518,1778058637000,-803.96,0.00015138,2]
[421717542,1778058638000,-8104.95109951,0.00017728,2]
[421717546,1778058638000,-2150.0,0.00018329,2]
[421717539,1778058638000,-160.0,0.00017335,2]
[421717541,1778058638000,-164.555842,0.00017532,2]
[421717540,1778058638000,-182.19555402,0.00017401,2]
[421717557,1778058638000,-340.263851,0.00019851,7]
[421717547,1778058638000,-256.6,0.0001841,2]
[421717554,1778058638000,-150.0,0.00019647,2]
[421717549,1778058638000,-475.44,0.00018953,2]
[421717553,1778058638000,-150.0,0.00019548,2]
[421717551,1778058638000,-500.0,0.00019178,2]
[421717555,1778058638000,-150.0,0.00019647,2]
[421717538,1778058638000,-214.60306816,0.00017335,2]
[421717550,1778058638000,-165.17,0.00019,2]
[421717534,1778058638000,-2351.0,0.00016663,2]
[421717525,1778058638000,-803.96,0.00016028,2]
[421717533,1778058638000,-1000.0,0.0001656,2]
[421717521,1778058638000,-608.26262482,0.00015422,2]
[421717520,1778058638000,-1680.0,0.00015148,2]
[421717531,1778058638000,-803.96,0.00016474,2]
[421717523,1778058638000,-420.0,0.00015826,2]
[421717522,1778058638000,-803.96,0.00015583,2]
[421717527,1778058638000,-255.0,0.00016124,2]
[421717528,1778058638000,-200.0,0.00016411,2]
[421717535,1778058638000,-803.96,0.00016919,2]
[421717526,1778058638000,-9999.99,0.00016116,2]
[421717556,1778058638000,-150.0,0.00019647,2]
[421717524,1778058638000,-300.0,0.00016,2]
[421717532,1778058638000,-240.0,0.00016536,2]
[421717536,1778058638000,-13106.47293511,0.00017,2]
[421717537,1778058638000,-516.0,0.0001733,2]
[421717545,1778058638000,-1043.05175915,0.00018,2]
[421717544,1778058638000,-1236.33016154,0.0001789,2]
[421717530,1778058638000,-256.6,0.00016438,2]
[421717558,1778058638000,-920.0,0.0002,2]
[421717548,1778058638000,-475.44,0.00018679,2]
[421717561,1778058638000,-477.96299908,0.0002,2]
[421717582,1778058638000,-200.0,0.000219,7]
[421717581,1778058638000,-600.0,0.000219,7]
[421717583,1778058638000,-500.0,0.00021908,2]
[421717588,1778058638000,-920.0,0.00022,2]
[421717585,1778058638000,-5000.0,0.00021918,2]
[421717584,1778058638000,-4000.0,0.00021909,2]
[421717586,1778058638000,-1162.97,0.00021918,5]
[421717578,1778058638000,-224.76667841,0.000215,2]
[421717590,1778058638000,-105989.91901721,0.00022,4]
[421717589,1778058638000,-174.0,0.00022,2]
[421717587,1778058638000,-500.0,0.00021973,2]
[421717593,1778058638000,-5737.9754,0.00022065,2]
[421717595,1778058638000,-88288.14048162,0.00022165,2]
[421717592,1778058638000,-378.0,0.00022,2]
[421717594,1778058638000,-500.0,0.00022164,2]
[421717560,1778058638000,-212.0,0.0002,2]
[421717591,1778058638000,-212.0,0.00022,2]
[421717579,1778058638000,-2000.0,0.00021667,2]
[421717552,1778058638000,-617.08,0.00019227,2]
[421717575,1778058638000,-500.0,0.00021243,2]
[421717580,1778058638000,-853.57,0.00021677,2]
[421717565,1778058638000,-256.6,0.00020381,2]
[421717559,1778058638000,-174.0,0.0002,2]
[421717567,1778058638000,-8104.95109951,0.00020499,2]
[421717566,1778058638000,-818.26,0.00020464,2]
[421717568,1778058638000,-4000.0,0.00020865,2]
[421717569,1778058638000,-920.0,0.00021,2]
[421717562,1778058638000,-378.0,0.0002,2]
[421717563,1778058638000,-1981.0,0.0002,2]
[421717571,1778058638000,-212.0,0.00021,2]
[421717570,1778058638000,-174.0,0.00021,2]
[421717572,1778058638000,-1206.9777646,0.00021,2]
[421717573,1778058638000,-199.20437416,0.00021,2]
[421717574,1778058638000,-378.0,0.00021,2]
[421717576,1778058638000,-4000.0,0.00021387,2]
[421717577,1778058638000,-8013.1,0.00021446,2]
[421717564,1778058638000,-4821.90022113,0.00020256,3]
[421717607,1778058639000,-291.171657,0.00023011,14]
[421717613,1778058639000,-1139.08427182,0.0002341,5]
[421717611,1778058639000,-1086.17596488,0.0002341,5]
[421717612,1778058639000,-1096.95547709,0.0002341,5]
[421717610,1778058639000,-8104.95109951,0.00023271,2]
[421717608,1778058639000,-162.091134,0.00023011,14]
[421717609,1778058639000,-156.64,0.00023069,2]
[421717606,1778058639000,-378.0,0.00023,2]
[421717599,1778058639000,-4000.0,0.0002243,2]
[421717603,1778058639000,-920.0,0.00023,2]
[421717600,1778058639000,-1000.0,0.00022521,2]
[421717605,1778058639000,-212.0,0.00023,2]
[421717601,1778058639000,-600.44,0.00022951,2]
[421717598,1778058639000,-256.6,0.00022353,2]
[421717614,1778058639000,-1117.87684035,0.0002341,5]
[421717602,1778058639000,-4000.0,0.00022952,2]
[421717597,1778058639000,-200.0,0.00022243,2]
[421717604,1778058639000,-174.0,0.00023,2]
[421717615,1778058639000,-1131.19013175,0.0002341,5]
[421717629,1778058639000,-174.0,0.00024,2]
[421717618,1778058639000,-1146.61246616,0.0002341,5]
[421717596,1778058639000,-20122.31851838,0.00022165,2]
[421717637,1778058639000,-160.68,0.00024658,2]
[421717638,1778058639000,-1000.0,0.00024658,2]
[421717640,1778058639000,-147.51820827,0.00024658,2]
[421717636,1778058639000,-243.21,0.00024434,2]
[421717639,1778058639000,-163.24,0.00024658,2]
[421717634,1778058639000,-2000.0,0.00024375,2]
[421717631,1778058639000,-378.0,0.00024,2]
[421717616,1778058639000,-1026.39074844,0.0002341,5]
[421717633,1778058639000,-256.6,0.00024324,2]
[421717619,1778058639000,-1087.96252348,0.0002341,5]
[421717625,1778058639000,-4187.11,0.00023535,2]
[421717621,1778058639000,-1039.08532404,0.0002341,5]
[421717617,1778058639000,-1024.67160332,0.0002341,5]
[421717630,1778058639000,-212.0,0.00024,2]
[421717623,1778058639000,-1942.8289767,0.0002341,5]
[421717627,1778058639000,-150.0,0.00023886,2]
[421717628,1778058639000,-920.0,0.00024,2]
[421717632,1778058639000,-4839.0,0.000241,5]
[421717635,1778058639000,-853.57,0.00024386,2]
[421717674,1778058642000,-473.93335833,0.00013357,2]
[421717796,1778058643000,-18319.09695737,0.000299,2]
[421717707,1778058643000,-400.0,0.000269,9]
[421717705,1778058643000,-155.45,0.00026849,7]
[421717710,1778058643000,-1259.743108,0.00027,2]
[421717711,1778058643000,-2000.0,0.00027084,2]
[421717709,1778058643000,-171.32,0.00026981,2]
[421717714,1778058643000,-216.0,0.00027123,2]
[421717719,1778058643000,-165.17,0.00027397,30]
[421717723,1778058643000,-649.87,0.00027397,20]
[421717715,1778058643000,-501.0,0.00027137,2]
[421717712,1778058643000,-350.0,0.00027123,2]
[421717717,1778058643000,-500.0,0.00027396,2]
[421717716,1778058643000,-238.843157,0.000273,30]
[421717718,1778058643000,-155.45,0.00027397,30]
[421717722,1778058643000,-1500.0,0.00027397,2]
[421717713,1778058643000,-362.0,0.00027123,2]
[421717721,1778058643000,-150.0,0.00027397,2]
[421717724,1778058643000,-26183.14,0.00027397,10]
[421717725,1778058643000,-21819.28,0.00027397,10]
[421717736,1778058643000,-20000.0,0.00028,3]
[421717734,1778058643000,-155.45,0.00027945,2]
[421717737,1778058643000,-214.60306816,0.00028,3]
[421717726,1778058643000,-214.60306816,0.000274,10]
[421717727,1778058643000,-437.81262664,0.00027444,2]
[421717706,1778058643000,-1200.0,0.000269,9]
[421717704,1778058643000,-200.0,0.000268,9]
[421717708,1778058643000,-400.0,0.000269,9]
[421717698,1778058643000,-155.45,0.00026301,2]
[421717797,1778058643000,-414.34244705,0.000299,2]
[421717676,1778058643000,-7.93179173,0.00024658,2]
[421717675,1778058643000,-711.98972296,0.00013357,2]
[421717677,1778058643000,-165.17,0.00024658,2]
[421717680,1778058643000,-169.18876038,0.00025,60]
[421717679,1778058643000,-924.0,0.00025,2]
[421717682,1778058643000,-214.0,0.00025,2]
[421717681,1778058643000,-180.0,0.00025,2]
[421717678,1778058643000,-200.0,0.00024841,2]
[421717684,1778058643000,-378.0,0.00025,2]
[421717695,1778058643000,-200.0,0.00026193,2]
[421717731,1778058643000,-500.0,0.000278,7]
[421717694,1778058643000,-8104.95109951,0.00026042,2]
[421717686,1778058643000,-1841.0,0.00025155,5]
[421717696,1778058643000,-256.6,0.00026296,2]
[421717688,1778058643000,-184.320957,0.00025305,2]
[421717687,1778058643000,-155.45,0.00025205,7]
[421717692,1778058643000,-218.90906031,0.00026,2]
[421717690,1778058643000,-155.45,0.00025753,30]
[421717689,1778058643000,-500.0,0.00025479,2]
[421717693,1778058643000,-165.17,0.00026027,7]
[421717691,1778058643000,-607.62296641,0.0002599,2]
[421717703,1778058643000,-500.0,0.0002652,2]
[421717702,1778058643000,-608.13,0.00026517,2]
[421717683,1778058643000,-624.66910915,0.00025,5]
[421717738,1778058643000,-289.85,0.00028,2]
[421717700,1778058643000,-231.301327,0.00026462,14]
[421717739,1778058643000,-289.85,0.00028,2]
[421717778,1778058643000,-1000.0,0.00029176,2]
[421717776,1778058643000,-501.0,0.0002917,4]
[421717765,1778058643000,-216.0,0.00028961,2]
[421717766,1778058643000,-152.0,0.00028981,4]
[421717767,1778058643000,-1519.62,0.00029,3]
[421717768,1778058643000,-162.85,0.00029031,7]
[421717770,1778058643000,-155.45,0.00029041,30]
[421717771,1778058643000,-5000.0,0.00029092,2]
[421717784,1778058643000,-267.0,0.00029458,2]
[421717782,1778058643000,-183.54,0.00029232,30]
[421717788,1778058643000,-155.45,0.00029589,2]
[421717791,1778058643000,-181.3652191,0.0002974,4]
[421717785,1778058643000,-150.0,0.00029458,2]
[421717792,1778058643000,-2000.0,0.00029792,2]
[421717786,1778058643000,-166.0,0.00029458,2]
[421717790,1778058643000,-152.22,0.0002968,30]
[421717789,1778058643000,-289.9808,0.00029655,2]
[421717787,1778058643000,-150.0,0.00029534,2]
[421717793,1778058643000,-152.0,0.00029836,5]
[421717794,1778058643000,-501.0,0.00029848,4]
[421717795,1778058643000,-600.44,0.00029899,7]
[421717798,1778058643000,-1800.0,0.000299,10]
[421717729,1778058643000,-552351.4908866,0.00027454,2]
[421717763,1778058643000,-183.52,0.00028931,7]
[421717774,1778058643000,-162.85,0.00029132,30]
[421717780,1778058643000,-162.86,0.00029232,2]
[421717747,1778058643000,-501.0,0.00028492,3]
[421717728,1778058643000,-5110.0297116,0.00027454,2]
[421717764,1778058643000,-249.98513785,0.00028961,2]
[421717733,1778058643000,-501.0,0.00027815,2]
[421717751,1778058643000,-162.85,0.0002863,2]
[421717741,1778058643000,-289.85,0.00028,2]
[421717740,1778058643000,-289.85,0.00028,2]
[421717745,1778058643000,-152.0,0.00028126,3]
[421717748,1778058643000,-155.45,0.00028493,7]
[421717742,1778058643000,-214.60306816,0.00028,10]
[421717743,1778058643000,-214.60306816,0.00028,10]
[421717749,1778058643000,-171.32,0.000285,2]
[421717750,1778058643000,-285.52069031,0.00028549,2]
[421717744,1778058643000,-171.32,0.00028082,2]
[421717753,1778058643000,-310.0,0.00028685,11]
[421717752,1778058643000,-183.52,0.0002863,2]
[421717755,1778058643000,-162.85,0.0002873,7]
[421717757,1778058643000,-172.43213,0.00028776,14]
[421717758,1778058643000,-8104.95109951,0.00028814,2]
[421717754,1778058643000,-13403.85280295,0.00028694,2]
[421717756,1778058643000,-165.17,0.00028767,2]
[421717746,1778058643000,-256.6,0.00028267,2]
[421717759,1778058643000,-162.85,0.0002883,30]
[421717761,1778058643000,-257.98513785,0.00028904,2]
[421717762,1778058643000,-162.85,0.00028931,2]
[421717760,1778058643000,-684.0,0.00028904,2]
[421717834,1778058644000,-262.686372,0.0003,7]
[421717832,1778058644000,-262.686372,0.0003,7]
[421717828,1778058644000,-285.992992,0.0003,7]
[421717833,1778058644000,-262.686372,0.0003,7]
[421717836,1778058644000,-617.196269,0.0003,7]
[421717863,1778058644000,-256.6,0.00030239,2]
[421717835,1778058644000,-617.196269,0.0003,7]
[421717831,1778058644000,-262.686372,0.0003,7]
[421717830,1778058644000,-186.059704,0.0003,7]
[421717840,1778058644000,-642.905357,0.0003,7]
[421717826,1778058644000,-151.0,0.0003,7]
[421717829,1778058644000,-151.0,0.0003,7]
[421717850,1778058644000,-1177.98,0.000301,30]
[421717862,1778058644000,-582.39782429,0.00030237,30]
[421717842,1778058644000,-214.60306816,0.0003,7]
[421717841,1778058644000,-642.905357,0.0003,7]
[421717845,1778058644000,-151.0,0.0003,7]
[421717843,1778058644000,-642.905357,0.0003,7]
[421717848,1778058644000,-3793.528,0.00030046,24]
[421717844,1778058644000,-642.905357,0.0003,7]
[421717849,1778058644000,-451.197,0.00030046,24]
[421717846,1778058644000,-151.0,0.0003,7]
[421717847,1778058644000,-1209.04259141,0.00030037,7]
[421717852,1778058644000,-155.45,0.00030136,7]
[421717838,1778058644000,-617.196269,0.0003,7]
[421717839,1778058644000,-151.0,0.0003,7]
[421717837,1778058644000,-617.196269,0.0003,7]
[421717799,1778058644000,-700.0,0.000299,10]
[421717823,1778058644000,-151.0,0.0003,7]
[421717861,1778058644000,-220.90951956,0.00030237,30]
[421717800,1778058644000,-600.0,0.000299,10]
[421717802,1778058644000,-289.85,0.0002999,2]
[421717801,1778058644000,-231.301327,0.00029914,14]
[421717803,1778058644000,-289.85,0.0002999,2]
[421717814,1778058644000,-222.473895,0.0003,7]
[421717813,1778058644000,-222.473895,0.0003,7]
[421717804,1778058644000,-151.0,0.00029997,7]
[421717805,1778058644000,-1078.66240771,0.00029999,15]
[421717807,1778058644000,-500.0,0.00029999,2]
[421717808,1778058644000,-600.44,0.00029999,7]
[421717806,1778058644000,-500.0,0.00029999,2]
[421717827,1778058644000,-151.0,0.0003,7]
[421717812,1778058644000,-151.0,0.0003,7]
[421717810,1778058644000,-122093.63421582,0.0003,2]
[421717809,1778058644000,-76291.40366231,0.0003,2]
[421717816,1778058644000,-222.473895,0.0003,7]
[421717824,1778058644000,-151.0,0.0003,7]
[421717817,1778058644000,-619.014766,0.0003,7]
[421717815,1778058644000,-222.473895,0.0003,7]
[421717825,1778058644000,-151.0,0.0003,7]
[421717818,1778058644000,-619.014766,0.0003,7]
[421717819,1778058644000,-619.014766,0.0003,7]
[421717820,1778058644000,-619.014766,0.0003,7]
[421717821,1778058644000,-151.0,0.0003,7]
[421717822,1778058644000,-151.0,0.0003,7]
[421717811,1778058644000,-243125.63943013,0.0003,2]
[421717854,1778058644000,-600.44,0.00030136,7]
[421717877,1778058644000,-501.0,0.00030526,5]
[421717851,1778058644000,-152.32,0.00030136,2]
[421717889,1778058644000,-174.0,0.00031235,30]
[421717891,1778058644000,-212.0,0.00031235,30]
[421717893,1778058644000,-151.0,0.00031236,30]
[421717892,1778058644000,-378.0,0.00031236,30]
[421717894,1778058644000,-176.0,0.00031343,2]
[421717890,1778058644000,-156.0,0.00031235,30]
[421717899,1778058644000,-1000.0,0.0003153,7]
[421717895,1778058644000,-1000.0,0.000315,7]
[421717897,1778058644000,-2000.0,0.00031507,30]
[421717896,1778058644000,-1500.0,0.00031507,120]
[421717898,1778058644000,-2000.0,0.00031507,30]
[421717902,1778058644000,-8104.95109951,0.00031585,2]
[421717882,1778058644000,-150.0,0.00031011,2]
[421717900,1778058644000,-461.9,0.00031538,7]
[421717903,1778058644000,-1200.0,0.00031633,2]
[421717901,1778058644000,-152.0,0.00031547,7]
[421717905,1778058644000,-1200.0,0.00031633,2]
[421717906,1778058644000,-1200.0,0.00031633,2]
[421717910,1778058644000,-1200.0,0.00031633,2]
[421717908,1778058644000,-1200.0,0.00031633,2]
[421717907,1778058644000,-1200.0,0.00031633,2]
[421717909,1778058644000,-1200.0,0.00031633,2]
[421717912,1778058644000,-885.0,0.00031633,2]
[421717911,1778058644000,-1200.0,0.00031633,2]
[421717914,1778058644000,-501.0,0.00031881,7]
[421717860,1778058644000,-200.82683596,0.00030237,30]
[421717904,1778058644000,-1200.0,0.00031633,2]
[421717883,1778058644000,-280.64,0.00031037,2]
[421717913,1778058644000,-200.0,0.00031811,2]
[421717884,1778058644000,-461.9,0.00031087,7]
[421717885,1778058644000,-310.0,0.00031108,18]
[421717855,1778058644000,-200.0,0.00030137,40]
[421717857,1778058644000,-163.98,0.00030137,2]
[421717858,1778058644000,-163.98,0.00030137,30]
[421717856,1778058644000,-200.0,0.00030137,2]
[421717853,1778058644000,-165.2,0.00030136,7]
[421717864,1778058644000,-2302.0,0.00030248,5]
[421717866,1778058644000,-200.0,0.00030251,2]
[421717865,1778058644000,-200.0,0.00030251,2]
[421717868,1778058644000,-200.0,0.00030251,2]
[421717874,1778058644000,-15847.2472871,0.00030298,120]
[421717875,1778058644000,-631.75654827,0.00030298,120]
[421717869,1778058644000,-200.0,0.00030251,2]
[421717859,1778058644000,-307.0,0.000302,2]
[421717876,1778058644000,-200.0,0.00030437,2]
[421717872,1778058644000,-205.0,0.00030251,2]
[421717888,1778058644000,-920.0,0.00031234,30]
[421717887,1778058644000,-152.0,0.00031234,30]
[421717880,1778058644000,-495.89430385,0.00030714,18]
[421717879,1778058644000,-152.0,0.00030692,6]
[421717881,1778058644000,-200.0,0.00030737,2]
[421717878,1778058644000,-461.9,0.00030637,7]
[421717867,1778058644000,-200.0,0.00030251,2]
[421717870,1778058644000,-200.0,0.00030251,2]
[421717873,1778058644000,-154.0,0.00030274,2]
[421717871,1778058644000,-200.0,0.00030251,2]
[421717886,1778058644000,-501.0,0.00031203,6]
[421717953,1778058645000,-1049.25710603,0.00032472,2]
[421717955,1778058645000,-853.57,0.00032515,120]
[421717951,1778058645000,-1000.0,0.00032472,2]
[421717948,1778058645000,-1000.0,0.0003247,2]